Workbook

Sheet Cap_3
A2: Ejercicio 12 | F2: Ejercicio 13 | K2: Ejercicio 14 | Q2: Ejercicio 15
A3: Problema | B3: Número decimal | C3: Base nueva | D3: Número en base nueva | F3: Problema | G3: Número en base 1 | H3: Base 1 | I3: Número decimal | K3: Problema | L3: Número en base 1 | M3: Base1 | N3: Base2 | O3: Número en base 2 | Q3: Problema | R3: Número en base 1 | S3: Base 1 | T3: Base2 | U3: Número en base 2
A4: 1 | B4: 123 | C4: 2 | D4: =DecimalToBase(B4,C4) -> 1111011 | F4: 1 | G4: 1101 | H4: 2 | I4: =BaseToDecimal(G4,H4) -> 13 | K4: 1 | L4: 1002 | M4: 3 | N4: 4 | O4: =DecimalToBase(BaseToDecimal(L4,M4),N4) -> 131 | Q4: 1 | R4: 1101 | S4: 2 | T4: 10 | U4: =BaseToDecimal(R4,S4) -> 13
A5: 2 | B5: 871 | C5: 3 | D5: =DecimalToBase(B5,C5) -> 1012021 | F5: 2 | G5: 32012 | H5: 4 | I5: =BaseToDecimal(G5,H5) -> 902 | K5: 2 | L5: 432 | M5: 7 | N5: 3 | O5: 22010 | Q5: 2 | R5: 5678 | S5: 10 | T5: 12 | U5: =DecimalToBase(R5,T5) -> 3352
A6: 3 | B6: 3476 | C6: 5 | D6: 102401 | F6: 3 | G6: 5431 | H6: 6 | I6: 1243 | K6: 3 | L6: B56 | M6: 12 | N6: 5 | O6: 23100 | Q6: 3 | R6: 18 | S6: 10 | T6: 18 | U6: =DecimalToBase(R6,T6) -> 10
A7: 4 | B7: 10087 | C7: 7 | D7: 41260 | F7: 4 | G7: 76321 | H7: 8 | I7: 31953 | K7: 4 | L7: 54CD | M7: 15 | N7: 12 | O7: A494 | Q7: 4 | R7: 4320 | S7: 5 | T7: 13 | U7: =DecimalToBase(BaseToDecimal(4320,5),13) -> 360
A8: 5 | B8: 1007 | C8: 8 | D8: 1757 | F8: 5 | G8: 20078 | H8: 9 | I8: 13193 | K8: 5 | L8: C00B | M8: 18 | N8: 23 | O8: 5H76
A9: 6 | B9: 78564 | C9: 9 | D9: 128683 | F9: 6 | G9: 7AB5 | H9: 12 | I9: 13673 | K9: 6 | L9: 5AB4 | M9: 14 | N9: 7 | O9: 64114
A10: 7 | B10: 87256 | C10: 12 | D10: 425B4 | F10: 7 | G10: CDA6 | H10: 15 | I10: 43581 | K10: 7 | L10: ABCD | M10: 20 | N10: 9 | O10: 138108
A11: 8 | B11: 120022 | C11: 20 | D11: F012 | F11: 8 | G11: 8EFA | H11: 18 | I11: 51472 | K11: 8 | L11: EF4C | M11: 21 | N11: 22 | O11: CHG9
A12: 9 | B12: 14325 | C12: 30 | D12: FRF | F12: 9 | G12: HEG34 | H12: 20 | I12: 2838464 | K12: 9 | L12: HF00C | M12: 25 | N12: 30 | O12: 8EIR2
A13: 10 | B13: 86543 | C13: 32 | D13: 2KGF | F13: 10 | G13: ABCD | H13: 30 | I13: 280273 | K13: 10 | L13: 8A0D | M13: 24 | N13: 15 | O13: 2472A

Sheet Cap_4
A2: Ejercicio 16 | E2: Ejercicio 17 | I2: Ejercicio 18
A3: Problema | B3: Número romano | C3: Número | E3: Problema | F3: Número | G3: Número romano | I3: Problema | J3: Número romano | K3: Número
A4: 1 | B4: =ROMAN(C4,0) -> LVIII | C4: 58 | E4: 1 | F4: 209 | G4: =ROMAN(F4,0) -> CCIX | I4: 1 | J4: =ROMAN(K4,0) -> MCDXCII | K4: 1492
A5: 2 | B5: CCCXXXIII | C5: 333 | E5: 2 | F5: 343 | G5: =ROMAN(F5,0) -> CCCXLIII | I5: 1a | J5: =ROMAN(K5,0) -> MDVI | K5: 1506
A6: 3 | B6: DCIII | C6: 603 | E6: 3 | F6: 1937 | G6: =ROMAN(F6,0) -> MCMXXXVII | I6: 2 | J6: XVIII | K6: 18
A7: 4 | B7: DCCXXXII | C7: 732 | I7: 2a | J7: MDCCCLXXII | K7: 1872
A8: 5 | B8: CMXLV | C8: 945 | I8: 3a | J8: XXII | K8: 22
A9: 6 | B9: MMCCIV | C9: 2204 | I9: 3b | J9: MDCCCXCV | K9: 1895
I10: 3c | J10: MDCCCXCVI | K10: 1896
I11: 4a | J11: V | K11: 5
I12: 4b | J12: VII | K12: 7
I13: 4c | J13: MDCCCXI | K13: 1811
I14: 6a | J14: XV | K14: 15
I15: 6b | J15: MDCCCX | K15: 1810

Sheet Cap_9
A2: Ejercicio 37 | E2: Ejercicio 38 | L2: Ejercicio 39
A3: Problema | B3: Número | C3: Complemento | E3: Problema | F3: Minuendo | G3: Sustraendo | H3: Complemento del sustraendo | I3: Número a restar | J3: Resultado | L3: Problema | M3: Término a sumar 1 | N3: Término a sumar 2 | O3: Término a sumar 3 | P3: Término a restar 1 | Q3: Término a restar 2 | R3: Término a restar 3 | S3: Término a restar 4 | T3: Complemento 1 | U3: Complemento 2 | V3: Complemento 3 | W3: Complemento 4 | X3: Número a restar 1 | Y3: Número a restar 2 | Z3: Número a restar 3 | AA3: Número a restar 4 | AB3: Resultado
A4: 1 | B4: 10 | C4: =Complemento(B4) -> 90 | E4: 1 | F4: 73 | G4: 54 | H4: =Complemento(G4) -> 46 | I4: 100 | J4: =F4+H4-I4 -> 19 | L4: 1 | M4: 19 | N4: 6 | P4: 8 | T4: =Complemento(8) -> 2 | X4: 10 | AB4: =SUM(M4:O4)+SUM(T4:W4)-SUM(X4:AA4) -> 17
A5: 2 | B5: 72 | C5: =Complemento(B5) -> 28 | E5: 2 | F5: 198 | G5: 115 | H5: =Complemento(G5) -> 885 | I5: 1000 | J5: =F5+H5-I5 -> 83 | L5: 2 | M5: 35 | N5: 4 | P5: 22 | Q5: 6 | T5: =Complemento(22) -> 78 | U5: =Complemento(6) -> 4 | X5: 100 | Y5: 10 | AB5: =SUM(M5:O5)+SUM(T5:W5)-SUM(X5:AA5) -> 11
A6: 3 | B6: 300 | C6: 700 | E6: 3 | F6: 954 | G6: 930 | H6: 70 | I6: 1000 | J6: 24 | L6: 3 | M6: 123 | N6: 154 | P6: 96 | Q6: 76 | T6: =Complemento(96) -> 4 | U6: =Complemento(76) -> 24 | X6: 100 | Y6: 100 | AB6: 105
A7: 4 | B7: 453 | C7: 547 | E7: 4 | F7: 1215 | G7: 843 | H7: 157 | I7: 1000 | J7: 372 | L7: 4 | M7: 810 | N7: 560 | P7: 700 | Q7: 90 | T7: =Complemento(700) -> 300 | U7: =Complemento(90) -> 10 | X7: 1000 | Y7: 100 | AB7: 580
A8: 5 | B8: 560 | C8: 440 | E8: 5 | F8: 7700 | G8: 3000 | H8: 7000 | I8: 10000 | J8: 4700 | L8: 5 | M8: 14 | N8: 42 | O8: 300 | P8: 9 | Q8: 20 | R8: 80 | S8: 23 | T8: =Complemento(9) -> 1 | U8: =Complemento(20) -> 80 | V8: =Complemento(80) -> 20 | W8: =Complemento(23) -> 77 | X8: 10 | Y8: 100 | Z8: 100 | AA8: 100 | AB8: 224
A9: 6 | B9: 1920 | C9: 8080 | E9: 6 | F9: 18564 | G9: 5610 | H9: 4390 | I9: 10000 | J9: 12954 | L9: 6 | M9: 1274 | N9: 3340 | P9: 863 | Q9: 14 | R9: 10 | S9: 19 | T9: =Complemento(863) -> 137 | U9: =Complemento(14) -> 86 | V9: =Complemento(10) -> 90 | W9: =Complemento(19) -> 81 | X9: 1000 | Y9: 100 | Z9: 100 | AA9: 100 | AB9: 3708
A10: 7 | B10: 32987 | C10: 67013 | E10: 7 | F10: 99900 | G10: 10000 | H10: 90000 | I10: 100000 | J10: 89900 | L10: 7 | M10: 20180 | N10: 14208 | O10: 29314 | P10: 45209 | Q10: 8164 | T10: =Complemento(45209) -> 54791 | U10: =Complemento(8164) -> 1836 | X10: 100000 | Y10: 10000 | AB10: 10329
A11: 8 | B11: 500700 | C11: 499300 | E11: 8 | F11: 143765 | G11: 20000 | H11: 80000 | I11: 100000 | J11: 123765 | L11: 8 | M11: 54209 | P11: 1349 | Q11: 10000 | R11: 4000 | S11: 6250 | T11: =Complemento(1349) -> 8651 | U11: =Complemento(10000) -> 90000 | V11: =Complemento(4000) -> 6000 | W11: =Complemento(6250) -> 3750 | X11: 10000 | Y11: 100000 | Z11: 10000 | AA11: 10000 | AB11: 32610
A12: 9 | B12: 89116 | C12: 10884 | E12: 9 | F12: 123456 | G12: 54000 | H12: 46000 | I12: 100000 | J12: 69456
A13: 10 | B13: 421594 | C13: 578406 | E13: 10 | F13: 53789543 | G13: 56470 | H13: 43530 | I13: 100000 | J13: 53733073
A14: 11 | B14: 239000 | C14: 761000
A15: 12 | B15: 78996000 | C15: 21004000

Sheet Cap_37
A2: Problema 286 | H2: Problema 287 | Q2: Problema 288 | Y2: Problema 289 | AM2: Problema 290 | AV2: Problema 290
A3: Problema | B3: Primer término (a) | C3: Segundo término | D3: r | E3: Término buscado (n) | F3: u | H3: Problema | I3: Incógnita | J3: Primer término (a) o término dado | K3: Segundo término o término siguiente | L3: r | M3: n | N3: u | O3: Valor buscado | Q3: Problema | R3: Primer término (a) | S3: Segundo término | T3: r | U3: n | V3: u | W3: S | Y3: Problema | Z3: a | AA3: u | AB3: m | AC3: r | AD3: Medio arimético 1 | AE3: Medio arimético 2 | AF3: Medio arimético 3 | AG3: Medio arimético 4 | AH3: Medio arimético 5 | AI3: Medio arimético 6 | AJ3: Medio arimético 7 | AK3: Medio arimético 8 | AM3: Problema | AN3: Primer término (a) | AO3: Segundo término | AP3: r | AQ3: n | AR3: u | AS3: S | AT3: Unidades | AV3: Problema | AW3: Incógnita | AX3: Primer término (a) o término dado | AY3: Segundo término o término siguiente | AZ3: r | BA3: n | BB3: u | BC3: Valor buscado (r, n o u) | BD3: Término buscado | BE3: Resultado | BF3: Unidades
A4: 1 | B4: 7 | C4: 10 | D4: =C4-B4 -> 3 | E4: 9 | F4: =B4+(E4-1)*D4 -> 31 | H4: 1 | I4: 0 | L4: 0.2857142857 | M4: 15 | N4: 20 | O4: =IF(I4=0,N4-(M4-1)*L4,IF(I4=1,(N4-J4)/(M4-1),(N4-J4+L4)/L4)) -> 16 | Q4: 1 | R4: 15 | S4: 19 | T4: =S4-R4 -> 4 | U4: 8 | V4: =R4+(U4-1)*T4 -> 43 | W4: =(R4+V4)*U4/2 -> 232 | Y4: 1 | Z4: 3 | AA4: 11 | AB4: 3 | AC4: =(AA4-Z4)/(AB4+1) -> 2 | AD4: =IF($AB4>=1,$Z4+$AC4,"") -> 5 | AE4: =IF($AB4>=2,AD4+$AC4,"") -> 7 | AF4: =IF($AB4>=3,AE4+$AC4,"") -> 9 | AG4: =IF($AB4>=4,AF4+$AC4,"") ->  | AH4: =IF($AB4>=5,AG4+$AC4,"") ->  | AI4: =IF($AB4>=6,AH4+$AC4,"") ->  | AJ4: =IF($AB4>=7,AI4+$AC4,"") ->  | AK4: =IF($AB4>=8,AJ4+$AC4,"") ->  | AM4: 1 | AN4: 7 | AP4: 7 | AQ4: 20 | AR4: =AN4+(AQ4-1)*AP4 -> 140 | AS4: =(AN4+AR4)*AQ4/2 -> 1470 | AV4: 16 | AW4: 1 | AX4: -2 | BA4: 11 | BB4: -52 | BC4: =IF(AW4=0,BB4-(BA4-1)*AZ4,IF(AW4=1,(BB4-AX4)/(BA4-1),(BB4-AX4+AZ4)/AZ4)) -> -5 | BD4: 6 | BE4: =AX4+(BD4-1)*BC4 -> -27
A5: 2 | B5: 5 | C5: 10 | D5: =C5-B5 -> 5 | E5: 12 | F5: =B5+(E5-1)*D5 -> 60 | H5: 2 | I5: 0 | L5: 3 | M5: 32 | N5: -18 | O5: =IF(I5=0,N5-(M5-1)*L5,IF(I5=1,(N5-J5)/(M5-1),(N5-J5+L5)/L5)) -> -111 | Q5: 2 | R5: 31 | S5: 38 | T5: =S5-R5 -> 7 | U5: 19 | V5: =R5+(U5-1)*T5 -> 157 | W5: =(R5+V5)*U5/2 -> 1786 | Y5: 2 | Z5: 19 | AA5: -5 | AB5: 7 | AC5: =(AA5-Z5)/(AB5+1) -> -3 | AD5: =IF($AB5>=1,$Z5+$AC5,"") -> 16 | AE5: =$Z5+2*$AC5 -> 13 | AF5: =IF($AB5>=3,AE5+$AC5,"") -> 10 | AG5: =IF($AB5>=4,AF5+$AC5,"") -> 7 | AH5: =IF($AB5>=5,AG5+$AC5,"") -> 4 | AI5: =IF($AB5>=6,AH5+$AC5,"") -> 1 | AJ5: =IF($AB5>=7,AI5+$AC5,"") -> -2 | AK5: =IF($AB5>=8,AJ5+$AC5,"") ->  | AM5: 2 | AN5: 5 | AP5: 5 | AQ5: 80 | AR5: =AN5+(AQ5-1)*AP5 -> 400 | AS5: =(AN5+AR5)*AQ5/2 -> 16200 | AV5: 17 | AW5: 2 | AX5: 500000 | AZ5: 200000 | BB5: 1900000 | BC5: =IF(AW5=0,BB5-(BA5-1)*AZ5,IF(AW5=1,(BB5-AX5)/(BA5-1),(BB5-AX5+AZ5)/AZ5)) -> 8
A6: 3 | B6: 9 | C6: 12 | D6: 3 | E6: 48 | F6: 150 | H6: 3 | I6: 0 | J6: 0.75 | K6: 1 | L6: =K6-J6 -> 0.25 | M6: 9 | N6: 1 | O6: -1 | Q6: 3 | R6: 42 | S6: 32 | T6: -10 | U6: 24 | V6: -188 | W6: -1752 | Y6: 3 | Z6: -13 | AA6: -73 | AB6: 5 | AC6: -10 | AD6: -23 | AE6: -33 | AF6: -43 | AG6: -53 | AH6: -63 | AM6: 3 | AN6: 9 | AP6: 10 | AQ6: 43 | AR6: 429 | AS6: 9417 | AV6: 18 | AW6: 1 | AX6: 118000 | BA6: 11 | BB6: 618000 | BC6: =IF(AW6=0,BB6-(BA6-1)*AZ6,IF(AW6=1,(BB6-AX6)/(BA6-1),(BB6-AX6+AZ6)/AZ6)) -> 50000 | BF6: $
A7: 4 | B7: 3 | C7: 10 | D7: 7 | E7: 63 | F7: 437 | H7: 4 | I7: 0 | J7: 7 | K7: 8.333333333 | L7: =(K7-J7)/2 -> 0.6666666667 | M7: 7 | N7: 8.333333333 | O7: 4.333333333 | Q7: 4 | R7: -10 | S7: -6 | T7: 4 | U7: 80 | V7: 306 | W7: 11840 | Y7: 4 | Z7: -42 | AA7: 53 | AB7: 4 | AC7: 19 | AD7: -23 | AE7: -4 | AF7: 15 | AG7: 34 | AM7: 4 | AN7: 2 | AP7: 2 | AQ7: 100 | AR7: 200 | AS7: 10100 | AV7: 19 | AW7: 0 | AZ7: -3000 | BA7: 5 | BB7: 30000 | BC7: 42000 | BF7: $
A8: 5 | B8: 11 | C8: 6 | D8: -5 | E8: 12 | F8: -44 | H8: 5 | I8: 1 | J8: 3 | M8: 6 | N8: 8 | O8: 1 | Q8: 5 | R8: 11 | S8: 1 | T8: -10 | U8: 60 | V8: -579 | W8: -17040 | Y8: 5 | Z8: -81 | AA8: -9 | AB8: 5 | AC8: 12 | AD8: -69 | AE8: -57 | AF8: -45 | AG8: -33 | AH8: -21 | AM8: 5 | AN8: 9 | AP8: 2 | AQ8: 100 | AR8: 207 | AS8: 10800 | AV8: 23 | AW8: 1 | AX8: 125000 | BA8: 3 | BB8: 205000 | BC8: 40000 | BD8: 2 | BE8: =AX8+(BD8-1)*BC8 -> 165000 | BF8: $
A9: 6 | B9: 19 | C9: 12 | D9: -7 | E9: 28 | F9: -170 | H9: 6 | I9: 1 | J9: -1 | M9: 10 | N9: -4 | O9: -0.3333333333 | Q9: 6 | R9: -5 | S9: -13 | T9: -8 | U9: 50 | V9: -397 | W9: -10050 | Y9: 6 | Z9: 1 | AA9: 3 | AB9: 3 | AC9: 0.5 | AD9: 1.5 | AE9: 2 | AF9: 2.5 | AM9: 6 | AN9: 80 | AP9: 30 | AQ9: 50 | AR9: 1550 | AS9: 40750 | AT9: $
A10: 7 | B10: 3 | C10: -1 | D10: -4 | E10: 13 | F10: -45 | H10: 7 | I10: 1 | J10: 0.5 | M10: 17 | N10: -0.375 | O10: -0.0546875 | Q10: 7 | R10: 0.5 | S10: 1 | T10: 0.5 | U10: 9 | V10: 4.5 | W10: 22.5 | Y10: 7 | Z10: 5 | AA10: 12 | AB10: 4 | AC10: 1.4 | AD10: 6.4 | AE10: 7.8 | AF10: 9.2 | AG10: 10.6 | AM10: 7 | AN10: 100 | AP10: 20 | AQ10: 32 | AR10: 720 | AS10: 13120 | AT10: $
A11: 8 | B11: 8 | C11: 0 | D11: -8 | E11: 54 | F11: -416 | H11: 8 | I11: 1 | J11: 5 | M11: 18 | N11: -80 | O11: -5 | Q11: 8 | R11: 0.3 | S11: 0.4 | T11: 0.1 | U11: 14 | V11: 1.6 | W11: 13.3 | Y11: 8 | Z11: -4 | AA11: 3 | AB11: 5 | AC11: 1.166666667 | AD11: -2.833333333 | AE11: -1.666666667 | AF11: -0.5 | AG11: 0.6666666667 | AH11: 1.833333333 | AM11: 8 | AN11: 77 | AP11: 11 | AQ11: 72 | AR11: 858 | AS11: 33660
A12: 9 | B12: -7 | C12: -3 | D12: 4 | E12: 31 | F12: 113 | H12: 9 | I12: 1 | J12: -42 | M12: 92 | N12: 1050 | O12: 12 | Q12: 9 | R12: 0.75 | S12: 1.5 | T12: 0.75 | U12: 19 | V12: 14.25 | W12: 142.5 | Y12: 9 | Z12: 0.75 | AA12: 0.125 | AB12: 5 | AC12: -0.1041666667 | AD12: 0.6458333333 | AE12: 0.5416666667 | AF12: 0.4375 | AG12: 0.3333333333 | AH12: 0.2291666667 | AM12: 9 | AN12: 200 | AP12: 300 | AQ12: 60 | AR12: 17900 | AS12: 543000 | AT12: $
A13: 10 | B13: -8 | C13: 2 | D13: 10 | E13: 17 | F13: 152 | H13: 10 | I13: 2 | J13: 4 | K13: 6 | L13: 2 | N13: 30 | O13: 14 | Q13: 10 | R13: 0.4 | S13: 0.1272727273 | T13: -0.2727272727 | U13: 34 | V13: -8.6 | W13: -139.4 | Y13: 10 | Z13: -1 | AA13: 3 | AB13: 6 | AC13: 0.5714285714 | AD13: -0.4285714286 | AE13: 0.1428571429 | AF13: 0.7142857143 | AG13: 1.285714286 | AH13: 1.857142857 | AI13: 2.428571429 | AM13: 10 | AN13: 6 | AP13: 0.25 | AQ13: 8 | AR13: 7.75 | AS13: 55 | AT13: m
A14: 11 | B14: 0.5 | C14: 0.75 | D14: 0.25 | E14: 12 | F14: 3.25 | H14: 11 | I14: 2 | J14: 5 | K14: 5.333333333 | L14: 0.3333333333 | N14: 18 | O14: 40 | Q14: 11 | R14: 2.333333333 | S14: 3.133333333 | T14: 0.8 | U14: 11 | V14: 10.33333333 | W14: 69.66666667 | Y14: 11 | Z14: 0.6666666667 | AA14: -0.125 | AB14: 5 | AC14: -0.1319444444 | AD14: 0.5347222222 | AE14: 0.4027777778 | AF14: 0.2708333333 | AG14: 0.1388888889 | AH14: 0.006944444444 | AM14: 13 | AN14: 500 | AO14: 800 | AP14: =AO14-AN14 -> 300 | AQ14: 32 | AR14: 9800 | AS14: 164800 | AT14: $
A15: 12 | B15: 0.6666666667 | C15: 0.8333333333 | D15: 0.1666666667 | E15: 17 | F15: 3.333333333 | H15: 12 | I15: 2 | J15: 5.2 | K15: 6 | L15: 0.8 | N15: 18 | O15: 17 | Q15: 12 | R15: 3.25 | S15: 3.65 | T15: 0.4 | U15: 46 | V15: 21.25 | W15: 563.5 | Y15: 12 | Z15: -2 | AA15: -5 | AB15: 7 | AC15: -0.375 | AD15: -2.375 | AE15: -2.75 | AF15: -3.125 | AG15: -3.5 | AH15: -3.875 | AI15: -4.25 | AJ15: -4.625 | AM15: 14 | AN15: 50 | AP15: -5.5 | AQ15: 8 | AR15: 11.5 | AS15: 246 | AT15: km
A16: 13 | B16: 0.375 | C16: 0.4583333333 | D16: 0.08333333333 | E16: 25 | F16: 2.375 | Q16: 13 | R16: -2 | S16: 0.25 | T16: 2.25 | U16: 17 | V16: 34 | W16: 272 | Y16: 13 | Z16: 0.5 | AA16: -0.7 | AB16: 8 | AC16: -0.1333333333 | AD16: 0.3666666667 | AE16: 0.2333333333 | AF16: 0.1 | AG16: -0.03333333333 | AH16: -0.1666666667 | AI16: =IF($AB16>=6,AH16+$AC16,"") -> -0.3 | AJ16: -0.4333333333 | AK16: -0.5666666667 | AM16: 20 | AN16: 16.1 | AP16: 32.2 | AQ16: 5 | AR16: 144.9 | AS16: 402.5 | AT16: pie
A17: 14 | B17: 0.3333333333 | C17: 0.875 | D17: 0.5416666667 | E17: 19 | F17: 10.08333333 | Q17: 14 | R17: -5 | S17: -4.625 | T17: 0.375 | U17: 12 | V17: -0.875 | W17: -35.25 | AM17: 21 | AN17: 51 | AP17: 2 | AQ17: =(AR17-AN17+AP17)/AP17 -> 382 | AR17: 813 | AS17: 165024
A18: 15 | B18: 3.5 | C18: 5.25 | D18: 1.75 | E18: 27 | F18: 49
A19: 16 | B19: 0.7777777778 | C19: 0.3333333333 | D19: -0.4444444444 | E19: 36 | F19: -14.77777778
A20: 17 | B20: 0.2857142857 | C20: 0.125 | D20: -0.1607142857 | E20: 15 | F20: -1.964285714
A21: 18 | B21: -0.6 | C21: -0.9333333333 | D21: -0.3333333333 | E21: 21 | F21: -7.266666667
A22: 19 | B22: -0.25 | C22: -2.25 | D22: -2 | E22: 13 | F22: -24.25
A23: 20 | B23: -0.8333333333 | C23: -0.3333333333 | D23: 0.5 | E23: 19 | F23: 8.166666667
A24: 21 | B24: 3.666666667 | C24: 2.916666667 | D24: -0.75 | E24: 33 | F24: -20.33333333
A25: 22 | B25: 2.8 | C25: 2.7 | D25: -0.1 | E25: 41 | F25: -1.2
A26: 23 | B26: -0.6 | C26: 0.3 | D26: 0.9 | E26: 26 | F26: 21.9
A27: 24 | B27: -4 | C27: -0.6666666667 | D27: 3.333333333 | E27: 19 | F27: 56
A28: 25 | B28: 3 | C28: -1.25 | D28: -4.25 | E28: 39 | F28: -158.5
H29: Incógnita | K29: Claves de incógnita | AV29: Incógnita | AY29: Claves de incógnita
H30: a= primer término | K30: 0 | AV30: a= primer término | AY30: 0
H31: r= razón | K31: 1 | AV31: r= razón | AY31: 1
H32: n = número de términos | K32: 2 | AV32: n = número de términos | AY32: 2
AM38: n = número de términos | AP38: 2

Sheet Cap_38
A2: Ejercicio 298 | F2: Ejercicio 299 | K2: Ejercicio 300 | Q2: Ejercicio 301 | U2: Ejercicio 302
A3: Problema | B3: Expresión en términos de logaritmos | C3: Valor de la expresión | D3: Antilogaritmo | F3: Problema | G3: Expresión en términos de logaritmos | H3: Valor de la expresión | I3: Antilogaritmo | K3: Problema | L3: Número | M3: Factores | N3: Expresión para calcular el logaritmo | O3: Logaritmo | Q3: Problema | R3: Expresión de la solución | S3: Solución | U3: Problema | V3: u | W3: a | X3: r | Y3: n
A4: 1 | B4: log(532)+log(0.184) | C4: =LOG(532)+LOG(0.184) -> 1.990729455 | D4: =10^C4 -> 97.888 | F4: 1 | G4: log(515)+log(78.19)-log6.13) | H4: =LOG(515)+LOG(78.19)-LOG(6.13) -> 3.817497968 | I4: =10^H4 -> 6568.980424 | K4: 1 | L4: 36 | M4: =factores(L4) -> 3*3*2*2*1 | N4: 2*(log(3) + log(2)) | O4: =2*(LOG(3) + LOG(2)) -> 1.556302501 | Q4: 1 | R4: log(3)/log(5) | S4: =LOG(3)/LOG(5) -> 0.6826061945 | U4: 1 | V4: 48 | W4: 3 | X4: 2 | Y4: =(LOG(V4)-LOG(W4))/LOG(X4)+1 -> 5
A5: 2 | B5: log(191.7)+log(432) | C5: =LOG(191.7)+LOG(432) -> 4.91810586 | D5: =10^C5 -> 82814.4 | F5: 2 | G5: log(23.054)+log(934.5)-log(8164) | H5: =LOG(23.054)+LOG(934.5)-LOG(8164) -> 0.4214225985 | I5: =10^H5 -> 2.638897967 | K5: 2 | L5: 75 | M5: =factores(L5) -> 5*5*3*1 | N5: log(3) + 2*log(5) | O5: =LOG(3) + 2*LOG(5) -> 1.875061263 | Q5: 2 | R5: log(512)/log(7) | S5: =LOG(512)/LOG(7) -> 3.205864684 | U5: 2 | V5: 15.1875 | W5: 2 | X5: 1.5 | Y5: =(LOG(V5)-LOG(W5))/LOG(X5)+1 -> 6
A6: 3 | B6: log(0.7)+log(0.013)+log(0.9) | C6: =LOG(0.7)+LOG(0.013)+LOG(0.9) -> -2.086716098 | D6: 0.00819 | F6: 3 | G6: log(8.14)+log(9.73)-log(0.6)-log(7.8) | H6: =LOG(8.14)+LOG(9.73)-LOG(0.6)-LOG(7.8) -> 1.228491392 | I6: =10^H6 -> 16.92354701 | K6: 3 | L6: 30 | M6: 5*3*2*1 | N6: log(2) + log(3) + log(5) | O6: =LOG(2) + LOG(3) + LOG(5) -> 1.477121255 | Q6: 3 | R6: log(0.0016)/log(0.2) | S6: =LOG(0.0016)/LOG(0.2) -> 4 | U6: 3 | V6: 512 | W6: 4 | X6: 2 | Y6: 8
A7: 4 | B7: log(7.5)+log(8.16)+log(0.35)+log(10037) | C7: =LOG(7.5)+LOG(8.16)+LOG(0.35)+LOG(10037) -> 5.332423391 | D7: 214992.54 | F7: 4 | G7: log(513.4)+log(9.132)-log(85.3)-log(10.764) | H7: =LOG(513.4)+LOG(9.132)-LOG(85.3)-LOG(10.764) -> 0.7080990469 | I7: =10^H7 -> 5.10621441 | K7: 4 | L7: 48 | M7: 3*2*2*2*2*1 | N7: 4*log(2) + log(3) | O7: =4*LOG(2) + LOG(3) -> 1.681241237 | Q7: 4 | R7: log(0.576)/log(9) | S7: =LOG(0.576)/LOG(9) -> -0.2510656507 | U7: 4 | V7: 25.28395062 | W7: 6 | X7: 1.333333333 | Y7: 6
A8: 5 | B8: log(3.2)+log(4.3)+log(7.8)+log(103.4)+log(0.019) | C8: =LOG(3.2)+LOG(4.3)+LOG(7.8)+LOG(103.4)+LOG(0.019) -> 2.323987176 | D8: 210.8565888 | F8: 5 | G8: log(53.245)+log(4325.6)-log(32.815)-log(91.79) | H8: =LOG(53.245)+LOG(4325.6)-LOG(32.815)-LOG(91.79) -> 1.883457409 | I8: =10^H8 -> 76.46406978 | K8: 5 | L8: 120 | M8: 5*3*2*2*2*1 | N8: 3*log(2) + log(3) + log(5) | O8: =3*LOG(2) + LOG(3) + LOG(5) -> 2.079181246 | Q8: 5 | R8: log(729)/log(3) - 1 | S8: =LOG(729)/LOG(3) - 1 -> 5 | U8: 5 | V8: 78.125 | W8: 2 | X8: 2.5 | Y8: 5
A9: 6 | B9: log(95.13)-log(7.23) | C9: =LOG(95.13)-LOG(7.23) -> 1.119179199 | D9: 13.15767635 | F9: 6 | G9: log(32.6)+log(841.9)-log(0.017)-log(732.14) | H9: =LOG(32.6)+LOG(841.9)-LOG(0.017)-LOG(732.14) -> 3.343435053 | I9: =-(10^H9) -> -2205.134344 | K9: 6 | L9: 98 | M9: 7*7*2*1 | N9: log(2) + 2*log(7) | O9: =LOG(2) + 2*LOG(7) -> 1.991226076 | Q9: 6 | R9: log(625)/log(5) + 2 | S9: =LOG(625)/LOG(5) + 2 -> 6
A10: 7 | B10: log(8.125)-log(0.9324) | C10: =LOG(8.125)-LOG(0.9324) -> 0.9402211048 | D10: 8.714071214 | F10: 7 | G10: log(95.36)+log(0.14)-log(83.7)-log(2.936) | H10: =LOG(95.36)+LOG(0.14)-LOG(83.7)-LOG(2.936) -> -1.264987231 | I10: =10^H10 -> 0.0543266304 | K10: 7 | L10: 343 | M10: 7*7*7*1 | N10: 3*log(7) - log(1000) | O10: =3*LOG(7) - LOG(1000) -> -0.46470588 | Q10: 7 | R10: (log(128)/log(2) - 1)/3 | S10: =(LOG(128)/LOG(2) - 1)/3 -> 2
A11: 8 | B11: log(7653.95)-log(12.354) | C11: =LOG(7653.95)-LOG(12.354) -> 2.792078024 | D11: 619.5523717 | F11: 8 | G11: log(7.2)+log(8.135)-log(0.003)-log(9134.7) | H11: =LOG(7.2)+LOG(8.135)-LOG(0.003)-LOG(9134.7) -> 0.3298745101 | I11: =-(10^H11) -> -2.137344412 | K11: 8 | L11: 225 | M11: 5*5*3*3*1 | N11: 2*(log(3) + log(5)) - log(10) | O11: =2*(LOG(3) + LOG(5)) - LOG(10) -> 1.352182518 | Q11: 8 | R11: (log(2187)/log(3) +1 )/2 | S11: =(LOG(2187)/LOG(3) +1 )/2 -> 4
A12: 9 | B12: log(0.72183)-log(0.0095) | C12: =LOG(0.72183)-LOG(0.0095) -> 1.880711323 | D12: 75.98210526 | F12: 9 | G12: 5*log(3)+4*log(0.2) | H12: =5*LOG(3)+4*LOG(0.2) -> -0.4102737437 | I12: =10^H12 -> 0.3888 | K12: 9 | L12: 196 | M12: 7*7*2*2*1 | N12: 2*(log(2) + log(7)) - log(100) | O12: =2*(LOG(2) + LOG(7)) - LOG(100) -> 0.2922560714 | Q12: 9 | R12: (log(915)/log(11) )/2 | S12: =(LOG(915)/LOG(11) )/2 -> 1.421856105
A13: 10 | B13: log(9,114)-log(0.02) | C13: =LOG(9114)-LOG(0.02) -> 5.658679029 | D13: 455700 | F13: 10 | G13: log(5)/2+2*log(3)/3 | H13: =LOG(5)/2+2*LOG(3)/3 -> 0.6675658386 | I13: =10^H13 -> 4.651208827 | K13: 10 | L13: 875 | M13: 7*5*5*5*1 | N13: 3*log(5) + log(7) - log(1000) | O13: =3*LOG(5) + LOG(7) - LOG(1000) -> -0.05799194698
A14: 11 | B14: 10*log(2) | C14: =10*LOG(2) -> 3.010299957 | D14: 1024 | F14: 11 | G14: log(2)/5+log(3)/2+3*log(5)/4 | H14: =LOG(2)/5+LOG(3)/2+3*LOG(5)/4 -> 0.8229941297 | I14: =10^H14 -> 6.652641639 | K14: 11 | L14: 2025 | M14: 5*5*3*3*3*3*1 | N14: 2*log(5) + 4*log(3) - log(10) | O14: =2*LOG(5) + 4*LOG(3) - LOG(10) -> 2.306425028
A15: 12 | B15: 3*log(.15) | C15: =3*LOG(0.15) -> -2.471726223 | D15: 0.003375 | F15: 12 | G15: 8*log(3)-5*log(5.6) | H15: =8*LOG(3)-5*LOG(5.6) -> 0.07602990273 | I15: =10^H15 -> 1.191324032 | K15: 12 | L15: 448 | M15: 7*2*2*2*2*2*2*1 | N15: 6*log(2) + log(7) - log(10) | O15: =6*LOG(2) + LOG(7) - LOG(10) -> 1.651278014
A16: 13 | B16: 4*log(18.65) | C16: =4*LOG(18.65) -> 5.082715345 | D16: 120980.4915 | F16: 13 | G16: 7*log(0.53)-3*log(2.5) | H16: =7*LOG(0.53)-3*LOG(2.5) -> -3.123888939 | I16: =10^H16 -> 0.0007518151295 | K16: 13 | L16: 25 | M16: 5*5*1 | N16: 2*log(5) - log(10) | O16: =2*LOG(5) - LOG(10) -> 0.3979400087
A17: 14 | B17: 2*log(0.168) | C17: =2*LOG(0.168) -> -1.549381437 | D17: 0.028224 | F17: 14 | G17: 2*log(3)/5-5*log(2)/3 | H17: =2*LOG(3)/5-5*LOG(2)/3 -> -0.3108681576 | I17: =10^H17 -> 0.4888007262 | K17: 14 | L17: 15 | M17: 5*3*1 | N17: log(3) + log(5) - log(10) | O17: =LOG(3) + LOG(5) - LOG(10) -> 0.1760912591
A18: 15 | B18: 6*log(7.2) | C18: =6*LOG(7.2) -> 5.143994979 | D18: 139314.0695 | F18: 15 | G18: (log(7.86)+log(8.14))/2 | H18: =(LOG(7.86)+LOG(8.14))/2 -> 0.9030234755 | I18: =10^H18 -> 7.998774906 | K18: 15 | L18: 14 | M18: 7*2*1 | N18: log(2) + log(7) - log(10) | O18: =LOG(2) + LOG(7) - LOG(10) -> 0.1461280357
A19: 16 | B19: log(3)/2 | C19: =LOG(3)/2 -> 0.2385606274 | D19: 1.732050808 | F19: 16 | G19: (log(932.5)+log(813.6)+log(0.005))/2 | H19: =(LOG(932.5)+LOG(813.6)+LOG(0.005))/2 -> 1.789514892 | I19: =10^H19 -> 61.59066488 | K19: 16 | L19: 2.333333333 | N19: log(7) - log(3) | O19: =LOG(7) - LOG(3) -> 0.3679767853
A20: 17 | B20: log(2)/3 | C20: =LOG(2)/3 -> 0.1003433319 | D20: 1.25992105 | F20: 17 | G20: (log(93.7)+log(104.2)-log(8.35)-log(7.3))/2 | H20: =(LOG(93.7)+LOG(104.2)-LOG(8.35)-LOG(7.3))/2 -> 1.102298987 | I20: =10^H20 -> 12.65607347 | K20: 17 | L20: 13 | N20: log(143) - log(11) | O20: =LOG(143) - LOG(11) -> 1.113943352
A21: 18 | B21: log(5)/4 | C21: =LOG(5)/4 -> 0.1747425011 | D21: 1.495348781 | F21: 18 | G21: (log(23.725)+log(9.182)+log(7.184))/3 | H21: =(LOG(23.725)+LOG(9.182)+LOG(7.184))/3 -> 1.064836611 | I21: =-(10^H21) -> -11.61011739 | K21: 18 | L21: 25 | N21: log(225) - log(9) | O21: =LOG(225) - LOG(9) -> 1.397940009
A22: 19 | B22: log(63)/5 | C22: =LOG(63)/5 -> 0.3598681099 | D22: 2.290172049 | F22: 19 | G22: (log(12316)+log(0.25)-log(931.8)-log(0.07))/4 | H22: =(LOG(12316)+LOG(0.25)-LOG(931.8)-LOG(0.07))/4 -> 0.4184972357 | I22: =10^H22 -> 2.621182355
A23: 20 | B23: log(815)/7 | C23: =LOG(815)/7 -> 0.4158796584 | D23: 2.605431493 | F23: 20 | G23: (log(56813)-log(22117))/5 | H23: =(LOG(56813)-LOG(22117))/5 -> 0.08194430096 | I23: =10^H23 -> 1.207658941
F24: 21 | G24: 3*(log(0.0316)-log(0.1615))/2 | H24: =3*(LOG(0.0316)-LOG(0.1615))/2 -> -1.062728166 | I24: 0.08655094896
F25: 22 | G25: 3*log(3)/4-2*log(5)/3 | H25: =3*LOG(3)/4-2*LOG(5)/3 -> -0.1081390619 | I25: 0.7795804475
F26: 23 | G26: (log(15)-log(4))/7 | H26: =(LOG(15)-LOG(4))/7 -> 0.08200446682 | I26: 1.207826258
F27: 24 | G27: (log(5)-log(3))/5 | H27: =(LOG(5)-LOG(3))/5 -> 0.04436974992 | I27: =-(10^H27) -> -1.107566343
F28: 25 | G28: 6*(log(5)-log(8))/5 | H28: =6*(LOG(5)-LOG(8))/5 -> -0.2449439792 | I28: 0.5689263134
F29: 26 | G29: (log(3)-log(5))/2+(log(5)-log(7))/3 | H29: =(LOG(3)-LOG(5))/2+(LOG(5)-LOG(7))/3 -> -0.15963372 | I29: 0.6924147009
F30: 27 | G30: log(2)/7+log(3)/5+log(0.2)/3 | H30: =LOG(2)/7+LOG(3)/5+LOG(0.2)/3 -> -0.09456146541 | I30: 0.8043379031
F31: 28 | G31: (log(32.14)/2+log(59.3)/3)-log(317.6)/4 | H31: =(LOG(32.14)/2+LOG(59.3)/3)-LOG(317.6)/4 -> 0.7190710439 | I31: 5.236860966
F32: 29 | G32: (2*log(0.75)+log(39.162)-log(0.07)-log(3.89))/2 | H32: =(2*LOG(0.75)+LOG(39.162)-LOG(0.07)-LOG(3.89))/2 -> 0.9539698743 | I32: 8.994351882
F33: 30 | G33: (3*log(0.2)+2*log(0.3)-4*log(0.05)-log(3.25)/2 | H33: =(3*LOG(0.2)+2*LOG(0.3)-4*LOG(0.05)-LOG(3.25))/2 -> 0.7747845591 | I33: 5.95366726

Sheet Cap_39
K1: Problema 304 | R1: Problema 305
A2: Problema 303 | I2: Unidades | K2: Problema | L2: c | M2: r(%) | N2: r(decimal) | O2: t(años) | P2: Anualidad | R2: Problema | S2: c | T2: r(%) | U2: r(decimal) | V2: t(años) | W2: Imposición
A3: Problema | B3: Incognita | C3: c | D3: C | E3: r(%) | F3: r(decimal) | G3: t(años) | H3: Resultado | K3: 1 | L3: 40000 | M3: 0.05 | N3: =M3 -> 0.05 | O3: 10 | P3: =L3*N3*POWER(1+N3,O3)/(POWER(1+N3,O3)-1) -> 5180.182999 | R3: 1 | S3: 30000 | T3: 0.06 | U3: =T3 -> 0.06 | V3: 9 | W3: =S3*U3/(POWER(1+U3,V3+1)-(1+U3)) -> 2462.893443
A4: 1 | B4: 0 | C4: 500 | E4: 0.06 | F4: =E4 -> 0.06 | G4: 3 | H4: =IF(B4=0,C4*POWER(1+F4,G4),IF(B4=1,D4/POWER(1+F4,G4),IF(B4=2,(LOG10(D4)-LOG10(C4))/LOG10(1+F4),POWER(D4/C4,1/G4)-1))) -> 595.508 | K4: 2 | L4: 85000 | M4: 0.03 | N4: =M4 -> 0.03 | O4: 12 | P4: 8539.277265 | R4: 2 | S4: 90000 | T4: 0.04 | U4: 0.04 | V4: 20 | W4: 2906.113009
A5: 2 | B5: 0 | C5: 3500 | E5: 0.07 | F5: =E5 -> 0.07 | G5: 5 | H5: =IF(B5=0,C5*POWER(1+F5,G5),IF(B5=1,D5/POWER(1+F5,G5),IF(B5=2,(LOG10(D5)-LOG10(C5))/LOG10(1+F5),(POWER(D5/C5,1/G5)-1)))) -> 4908.931057 | K5: 3 | L5: 600000 | M5: 0.05 | N5: =M5 -> 0.05 | O5: 20 | P5: 48145.55231 | R5: 3 | S5: 200000 | T5: 0.05 | U5: 0.05 | V5: 40 | W5: 1576.792603
A6: 3 | B6: 0 | C6: 8132 | E6: 0.09 | F6: 0.09 | G6: 10 | H6: 19251.4014 | K6: 4 | L6: 5000000 | M6: 0.06 | N6: 0.06 | O6: 30 | P6: 363244.5575 | R6: 4 | S6: 40000 | T6: 0.06 | U6: 0.06 | V6: 25 | W6: 687.8006873
A7: 4 | B7: 0 | C7: 930 | E7: 0.035 | F7: 0.035 | G7: 7 | H7: 1183.219714 | K7: 5 | L7: 3000000 | M7: 0.06 | N7: 0.06 | O7: 5 | P7: 712189.2013
A8: 5 | B8: 0 | C8: 12318 | E8: 0.0425 | F8: 0.0425 | G8: 6 | H8: 15812.35593 | K8: 6 | L8: 12000000 | M8: 0.07 | N8: 0.07 | O8: 12 | P8: 1510823.864
A9: 6 | B9: 0 | C9: 24186 | E9: 0.055 | F9: 0.055 | G9: 7 | H9: 35182.87019 | K9: 7 | L9: 350000 | M9: 0.045 | N9: 0.045 | O9: 3 | P9: 127320.676
A10: 7 | B10: 0 | C10: 54293 | E10: 0.0375 | F10: 0.0375 | G10: 5 | H10: 65265.60475 | K10: 8 | L10: 425000 | M10: 0.06 | N10: 0.06 | O10: 10 | P10: 57743.88224
A11: 8 | B11: 0 | C11: 800 | E11: 0.015 | F11: 0.015 | G11: 4 | H11: 849.0908405 | K11: 9 | L11: 907500 | M11: 0.05 | N11: 0.05 | O11: 25 | P11: 64389.355
A12: 9 | B12: 0 | C12: 900 | E12: 0.01 | F12: 0.01 | G12: 4 | H12: 936.543609 | K12: 10 | L12: 735500 | M12: 0.055 | N12: 0.055 | O12: 30 | P12: 50606.36411
A13: 10 | B13: 1 | D13: 972.6 | E13: 0.05 | F13: 0.05 | G13: 4 | H13: 800.160427 | K13: 11 | L13: 473000 | M13: 0.035 | N13: 0.035 | O13: 9 | P13: 62173.96043
A14: 11 | B14: 1 | D14: 1893.5 | E14: 0.045 | F14: 0.045 | G14: 6 | H14: 1454.01058 | K14: 12 | L14: 45800 | M14: 0.04 | N14: 0.04 | O14: 30 | P14: 2648.61854
A15: 12 | B15: 1 | D15: 54198.16 | E15: 0.08 | F15: 0.08 | G15: 7 | H15: 31624.1058 | I15: años
A16: 13 | B16: 2 | C16: 600 | D16: 695.56 | E16: 0.03 | F16: 0.03 | H16: 4.999783824 | I16: años
A17: 14 | B17: 2 | C17: 1215 | D17: 1709.61 | E17: 0.05 | F17: 0.05 | H17: =IF(B17=0,C17*POWER(1+F17,G17),IF(B17=1,D17/POWER(1+F17,G17),IF(B17=2,(LOG10(D17)-LOG10(C17))/LOG10(1+F17),(POWER(D17/C17,1/G17)-1)))) -> 6.999796032 | I17: %
A18: 15 | B18: 3 | C18: 800 | D18: 1048.63 | G18: 4 | H18: =IF(B18=0,C18*POWER(1+F18,G18),IF(B18=1,D18/POWER(1+F18,G18),IF(B18=2,(LOG10(D18)-LOG10(C18))/LOG10(1+F18),100*(POWER(D18/C18,1/G18)-1)))) -> 6.999826332 | I18: %
A19: 16 | B19: 3 | C19: 6354 | D19: 7151.46 | G19: 4 | H19: =IF(B19=0,C19*POWER(1+F19,G19),IF(B19=1,D19/POWER(1+F19,G19),IF(B19=2,(LOG10(D19)-LOG10(C19))/LOG10(1+F19),100*(POWER(D19/C19,1/G19)-1)))) -> 2.999917261
A20: 17 | B20: 0 | C20: 900 | E20: 0.05 | F20: 0.05 | G20: =7/3 -> 2.333333333 | H20: =IF(B20=0,C20*POWER(1+F20,G20),IF(B20=1,D20/POWER(1+F20,G20),IF(B20=2,(LOG10(D20)-LOG10(C20))/LOG10(1+F20),(POWER(D20/C20,1/G20)-1))))-C20 -> 108.519285
A23: Incógnita | C23: Claves de incógnita
A24: C= cantidad final | C24: 0
A25: c= cantidad inicial | C25: 1
A26: t = período | C26: 2
A27: r = interés | C27: 3
